[Event "Titled Tuesday Blitz June 21 Early 2022"]
[White "Boder, Jan"]
[Black "Korchmar, Vasiliy"]
[WhiteFideId "16243226"]
[BlackFideId "24131750"]
[WhiteElo "2064"]
[BlackElo "2370"]
[Result "1-0"]
[Round "01"]
[TimeControl "180+1"]
[Date "2022.06.22"]
[WhiteClock "0:00:16"]
[BlackClock "0:00:02"]

1. b3 {[%clk 0:02:57]}  Nf6 {[%clk 0:02:57]} 2. Bb2 {[%clk 0:02:58]}  g6 {[%clk 0:02:57]} 3. Bxf6 {[%clk 0:02:57]}  exf6 {[%clk 0:02:57]} 4. c4 {[%clk 0:02:58]}  Bg7 {[%clk 0:02:52]} 5. g3 {[%clk 0:02:57]}  d5 {[%clk 0:02:50]} 6. cxd5 {[%clk 0:02:55]}  Qxd5 {[%clk 0:02:51]} 7. Nf3 {[%clk 0:02:56]}  Nc6 {[%clk 0:02:40]} 8. Nc3 {[%clk 0:02:55]}  Qh5 {[%clk 0:02:39]} 9. Bg2 {[%clk 0:02:54]}  Bh3 {[%clk 0:02:38]} 10. O-O {[%clk 0:02:53]}  O-O-O {[%clk 0:02:36]} 11. Rc1 {[%clk 0:02:20]}  Rhe8 {[%clk 0:02:35]} 12. b4 {[%clk 0:02:14]}  Kb8 {[%clk 0:02:34]} 13. b5 {[%clk 0:02:06]}  Ne5 {[%clk 0:02:28]} 14. Qc2 {[%clk 0:01:54]}  Bxg2 {[%clk 0:02:16]} 15. Kxg2 {[%clk 0:01:55]}  Nxf3 {[%clk 0:02:16]} 16. exf3 {[%clk 0:01:53]}  Qc5 {[%clk 0:02:02]} 17. Qb3 {[%clk 0:01:44]}  Re6 {[%clk 0:01:41]} 18. d4 {[%clk 0:01:32]}  Qe7 {[%clk 0:01:32]} 19. Nd5 {[%clk 0:01:30]}  Qd6 {[%clk 0:01:23]} 20. Nxc7 {[%clk 0:01:00]}  Re7 {[%clk 0:01:23]} 21. b6 {[%clk 0:01:00]}  Qxb6 {[%clk 0:01:20]} 22. Qxb6 {[%clk 0:01:00]}  axb6 {[%clk 0:01:21]} 23. Nb5 {[%clk 0:01:01]}  f5 {[%clk 0:01:13]} 24. Rfd1 {[%clk 0:01:00]}  Rd5 {[%clk 0:01:00]} 25. a4 {[%clk 0:01:00]}  Red7 {[%clk 0:01:00]} 26. Rc4 {[%clk 0:00:59]}  h5 {[%clk 0:00:53]} 27. f4 {[%clk 0:00:59]}  Re7 {[%clk 0:00:47]} 28. Kf3 {[%clk 0:00:58]}  Rd8 {[%clk 0:00:26]} 29. h4 {[%clk 0:00:58]}  Red7 {[%clk 0:00:24]} 30. Ke3 {[%clk 0:00:56]}  Bf6 {[%clk 0:00:24]} 31. Kf3 {[%clk 0:00:56]}  Be7 {[%clk 0:00:24]} 32. Rdc1 {[%clk 0:00:51]}  Bf6 {[%clk 0:00:23]} 33. Rc7 {[%clk 0:00:48]}  Bg7 {[%clk 0:00:12]} 34. d5 {[%clk 0:00:42]}  Bf8 {[%clk 0:00:09]} 35. d6 {[%clk 0:00:28]}  Bxd6 {[%clk 0:00:06]} 36. Rxd7 {[%clk 0:00:28]}  Rxd7 {[%clk 0:00:06]} 37. Rd1 {[%clk 0:00:29]}  f6 {[%clk 0:00:02]} 38. Rxd6 {[%clk 0:00:28]}  Rxd6 {[%clk 0:00:02]} 39. Nxd6 {[%clk 0:00:29]}  Kc7 {[%clk 0:00:02]} 40. Nc4 {[%clk 0:00:16]}  Kc6 {[%clk 0:00:03]} 41. Ke3 {[%clk 0:00:16]}  b5 {[%clk 0:00:01]} 42. axb5+ {[%clk 0:00:15]}  Kxb5 {[%clk 0:00:02]} 43. Kd4 {[%clk 0:00:15]}  Kb4 {[%clk 0:00:02]} 44. Nb6 {[%clk 0:00:15]}  Kb5 {[%clk 0:00:02]} 45. Nd5 {[%clk 0:00:16]}  Ka4 {[%clk 0:00:01]} 46. Kc3 {[%clk 0:00:16]}  b5 {[%clk 0:00:02]} 47. Kb2 {[%clk 0:00:14]}  b4 {[%clk 0:00:01]} 48. Nxf6 {[%clk 0:00:14]}  Kb5 {[%clk 0:00:01]} 49. Nd7 {[%clk 0:00:14]}  Kc4 {[%clk 0:00:01]} 50. Nf8 {[%clk 0:00:15]}  Kd4 {[%clk 0:00:01]} 51. Nxg6 {[%clk 0:00:16]}  Ke4 {[%clk 0:00:02]} 52. Ne7 {[%clk 0:00:16]} 1-0


[Site "https://www.chess.com"]

[Event "Titled Tuesday Blitz June 21 Early 2022"]
[White "Buscar, Michael"]
[Black "Lianes Garcia, Marcos"]
[WhiteFideId "2603616"]
[BlackFideId "32060777"]
[WhiteElo "2010"]
[BlackElo "2310"]
[Result "0-1"]
[Round "01"]
[TimeControl "180+1"]
[Date "2022.06.22"]
[WhiteClock "0:00:01"]
[BlackClock "0:00:42"]

1. Nf3 {[%clk 0:02:59]}  g6 {[%clk 0:02:59]} 2. c4 {[%clk 0:02:57]}  Bg7 {[%clk 0:03:00]} 3. g3 {[%clk 0:02:56]}  c5 {[%clk 0:02:59]} 4. Bg2 {[%clk 0:02:57]}  Nc6 {[%clk 0:02:59]} 5. O-O {[%clk 0:02:58]}  Nf6 {[%clk 0:03:00]} 6. Nc3 {[%clk 0:02:54]}  O-O {[%clk 0:02:59]} 7. d4 {[%clk 0:02:51]}  cxd4 {[%clk 0:03:00]} 8. Nxd4 {[%clk 0:02:52]}  d6 {[%clk 0:03:01]} 9. Nxc6 {[%clk 0:02:50]}  bxc6 {[%clk 0:03:01]} 10. Bxc6 {[%clk 0:02:50]}  Bh3 {[%clk 0:03:02]} 11. Bg2 {[%clk 0:02:38]}  Bxg2 {[%clk 0:03:00]} 12. Kxg2 {[%clk 0:02:38]}  Rc8 {[%clk 0:03:01]} 13. Qa4 {[%clk 0:02:34]}  Qc7 {[%clk 0:02:57]} 14. Bd2 {[%clk 0:02:22]}  Qxc4 {[%clk 0:02:54]} 15. Qxc4 {[%clk 0:02:02]}  Rxc4 {[%clk 0:02:55]} 16. Rfc1 {[%clk 0:01:58]}  Rfc8 {[%clk 0:02:53]} 17. Nb5 {[%clk 0:01:51]}  a6 {[%clk 0:02:49]} 18. Na7 {[%clk 0:01:44]}  Rxc1 {[%clk 0:02:22]} 19. Rxc1 {[%clk 0:01:43]}  Rxc1 {[%clk 0:02:20]} 20. Bxc1 {[%clk 0:01:44]}  Kf8 {[%clk 0:02:20]} 21. b4 {[%clk 0:01:39]}  Nd5 {[%clk 0:02:18]} 22. b5 {[%clk 0:01:31]}  axb5 {[%clk 0:02:18]} 23. Nxb5 {[%clk 0:01:32]}  Ke8 {[%clk 0:02:18]} 24. Kf3 {[%clk 0:01:25]}  Kd7 {[%clk 0:02:18]} 25. Ke4 {[%clk 0:01:25]}  Kc6 {[%clk 0:02:03]} 26. a4 {[%clk 0:01:15]}  Nb6 {[%clk 0:01:47]} 27. Nd4+ {[%clk 0:00:51]}  Bxd4 {[%clk 0:01:42]} 28. Kxd4 {[%clk 0:00:52]}  Nxa4 {[%clk 0:01:43]} 29. h4 {[%clk 0:00:46]}  h5 {[%clk 0:01:42]} 30. f3 {[%clk 0:00:45]}  e5+ {[%clk 0:01:39]} 31. Ke3 {[%clk 0:00:37]}  Kd5 {[%clk 0:01:34]} 32. g4 {[%clk 0:00:26]}  f5 {[%clk 0:01:25]} 33. gxh5 {[%clk 0:00:18]}  gxh5 {[%clk 0:01:25]} 34. Ba3 {[%clk 0:00:13]}  Nb6 {[%clk 0:01:22]} 35. Kf2 {[%clk 0:00:12]}  Nc4 {[%clk 0:01:17]} 36. Bb4 {[%clk 0:00:12]}  Kc6 {[%clk 0:01:13]} 37. Kg3 {[%clk 0:00:07]}  Kb5 {[%clk 0:01:09]} 38. Bc3 {[%clk 0:00:07]}  Ka4 {[%clk 0:01:08]} 39. Be1 {[%clk 0:00:02]}  Kb3 {[%clk 0:01:07]} 40. Bf2 {[%clk 0:00:03]}  Kc2 {[%clk 0:01:08]} 41. Ba7 {[%clk 0:00:03]}  Kd1 {[%clk 0:01:07]} 42. Kf2 {[%clk 0:00:03]}  Kd2 {[%clk 0:01:01]} 43. Bb8 {[%clk 0:00:03]}  d5 {[%clk 0:00:50]} 44. Bc7 {[%clk 0:00:03]}  e4 {[%clk 0:00:44]} 45. fxe4 {[%clk 0:00:01]}  fxe4 {[%clk 0:00:45]} 46. Bf4+ {[%clk 0:00:01]}  e3+ {[%clk 0:00:42]} 0-1


[Site "https://www.chess.com"]

[Event "Titled Tuesday Blitz June 21 Early 2022"]
[White "Corrales Jimenez, Fidel"]
[Black "Aaditya Dhingra"]
[WhiteFideId "3506690"]
[BlackFideId "25678191"]
[WhiteElo "2541"]
[BlackElo "1849"]
[Result "1-0"]
[Round "01"]
[TimeControl "180+1"]
[Date "2022.06.22"]
[WhiteClock "0:00:29"]
[BlackClock "0:00:02"]

1. d4 {[%clk 0:02:37]}  Nf6 {[%clk 0:02:58]} 2. c4 {[%clk 0:02:36]}  c5 {[%clk 0:02:56]} 3. d5 {[%clk 0:02:35]}  b5 {[%clk 0:02:56]} 4. cxb5 {[%clk 0:02:33]}  a6 {[%clk 0:02:57]} 5. bxa6 {[%clk 0:02:34]}  g6 {[%clk 0:02:56]} 6. Nc3 {[%clk 0:02:35]}  Bxa6 {[%clk 0:02:55]} 7. Nf3 {[%clk 0:02:35]}  Bg7 {[%clk 0:02:54]} 8. e4 {[%clk 0:02:35]}  Bxf1 {[%clk 0:02:53]} 9. Kxf1 {[%clk 0:02:36]}  d6 {[%clk 0:02:53]} 10. g3 {[%clk 0:02:36]}  Nbd7 {[%clk 0:02:53]} 11. Kg2 {[%clk 0:02:37]}  O-O {[%clk 0:02:53]} 12. Qe2 {[%clk 0:02:37]}  Qa5 {[%clk 0:02:49]} 13. h3 {[%clk 0:02:36]}  Rfb8 {[%clk 0:02:48]} 14. Rb1 {[%clk 0:02:32]}  Ne8 {[%clk 0:02:37]} 15. Bd2 {[%clk 0:02:20]}  Nc7 {[%clk 0:02:34]} 16. a4 {[%clk 0:02:09]}  Qa6 {[%clk 0:02:14]} 17. Qe3 {[%clk 0:02:09]}  Rb3 {[%clk 0:02:09]} 18. Rhe1 {[%clk 0:01:50]}  Rab8 {[%clk 0:02:05]} 19. Qg5 {[%clk 0:01:47]}  Bf6 {[%clk 0:01:59]} 20. Qg4 {[%clk 0:01:47]}  Ne5 {[%clk 0:01:48]} 21. Nxe5 {[%clk 0:01:46]}  Bxe5 {[%clk 0:01:48]} 22. Qd7 {[%clk 0:01:39]}  R3b7 {[%clk 0:01:11]} 23. Qc6 {[%clk 0:01:02]}  Qxc6 {[%clk 0:01:10]} 24. dxc6 {[%clk 0:01:03]}  Rxb2 {[%clk 0:01:09]} 25. Rxb2 {[%clk 0:01:02]}  Rxb2 {[%clk 0:01:09]} 26. Nd5 {[%clk 0:01:02]}  Na6 {[%clk 0:00:24]} 27. Bh6 {[%clk 0:01:01]}  Bd4 {[%clk 0:00:16]} 28. Rf1 {[%clk 0:00:59]}  e6 {[%clk 0:00:15]} 29. c7 {[%clk 0:00:51]}  Nxc7 {[%clk 0:00:15]} 30. Nxc7 {[%clk 0:00:52]}  Ra2 {[%clk 0:00:12]} 31. Nb5 {[%clk 0:00:51]}  Rxa4 {[%clk 0:00:11]} 32. Nxd4 {[%clk 0:00:46]}  cxd4 {[%clk 0:00:10]} 33. Rc1 {[%clk 0:00:46]}  Ra8 {[%clk 0:00:09]} 34. Rc7 {[%clk 0:00:42]}  e5 {[%clk 0:00:07]} 35. f4 {[%clk 0:00:41]}  d3 {[%clk 0:00:06]} 36. Rd7 {[%clk 0:00:38]}  f6 {[%clk 0:00:05]} 37. Rxd6 {[%clk 0:00:37]}  Ra2+ {[%clk 0:00:04]} 38. Kf3 {[%clk 0:00:35]}  Rh2 {[%clk 0:00:03]} 39. h4 {[%clk 0:00:30]}  exf4 {[%clk 0:00:02]} 40. Bxf4 {[%clk 0:00:31]}  f5 {[%clk 0:00:01]} 41. exf5 {[%clk 0:00:31]}  gxf5 {[%clk 0:00:02]} 42. Rxd3 {[%clk 0:00:29]} 1-0


[Site "https://www.chess.com"]

[Event "Titled Tuesday Blitz June 21 Early 2022"]
[White "Cramling Bellon, Anna"]
[Black "Krishnan, Varun"]
[WhiteFideId "32009232"]
[BlackFideId "5054508"]
[WhiteElo "1905"]
[BlackElo "2590"]
[Result "0-1"]
[Round "01"]
[TimeControl "180+1"]
[Date "2022.06.22"]
[WhiteClock "0:00:01"]
[BlackClock "0:00:04"]

1. d4 {[%clk 0:02:58]}  d5 {[%clk 0:02:59]} 2. c4 {[%clk 0:02:57]}  e6 {[%clk 0:02:59]} 3. Nc3 {[%clk 0:02:56]}  Be7 {[%clk 0:02:59]} 4. cxd5 {[%clk 0:02:55]}  exd5 {[%clk 0:02:58]} 5. Bf4 {[%clk 0:02:55]}  c6 {[%clk 0:02:58]} 6. e3 {[%clk 0:02:47]}  Bd6 {[%clk 0:02:53]} 7. Bxd6 {[%clk 0:02:17]}  Qxd6 {[%clk 0:02:54]} 8. Bd3 {[%clk 0:02:10]}  Ne7 {[%clk 0:02:54]} 9. Nge2 {[%clk 0:02:01]}  O-O {[%clk 0:02:49]} 10. Ng3 {[%clk 0:01:58]}  Nd7 {[%clk 0:02:38]} 11. O-O {[%clk 0:01:56]}  Nf6 {[%clk 0:02:38]} 12. f3 {[%clk 0:01:52]}  h5 {[%clk 0:02:25]} 13. Qc2 {[%clk 0:01:26]}  h4 {[%clk 0:02:21]} 14. Nf5 {[%clk 0:01:26]}  Bxf5 {[%clk 0:02:10]} 15. Bxf5 {[%clk 0:01:27]}  g6 {[%clk 0:02:11]} 16. Bh3 {[%clk 0:01:06]}  Kg7 {[%clk 0:02:08]} 17. Rad1 {[%clk 0:01:03]}  Nh5 {[%clk 0:01:54]} 18. Ne2 {[%clk 0:00:53]}  Rfe8 {[%clk 0:01:25]} 19. e4 {[%clk 0:00:47]}  Nf4 {[%clk 0:01:23]} 20. Nxf4 {[%clk 0:00:41]}  Qxf4 {[%clk 0:01:24]} 21. Qd2 {[%clk 0:00:37]}  Qxd2 {[%clk 0:01:05]} 22. Rxd2 {[%clk 0:00:38]}  Rad8 {[%clk 0:01:05]} 23. e5 {[%clk 0:00:29]}  f5 {[%clk 0:00:59]} 24. exf6+ {[%clk 0:00:26]}  Kxf6 {[%clk 0:00:58]} 25. Re1 {[%clk 0:00:23]}  Nf5 {[%clk 0:00:57]} 26. Rxe8 {[%clk 0:00:20]}  Rxe8 {[%clk 0:00:56]} 27. Bxf5 {[%clk 0:00:18]}  gxf5 {[%clk 0:00:47]} 28. Kf2 {[%clk 0:00:19]}  f4 {[%clk 0:00:46]} 29. Re2 {[%clk 0:00:18]}  Rxe2+ {[%clk 0:00:35]} 30. Kxe2 {[%clk 0:00:19]}  h3 {[%clk 0:00:35]} 31. gxh3 {[%clk 0:00:17]}  Kg5 {[%clk 0:00:35]} 32. Kf2 {[%clk 0:00:12]}  Kh5 {[%clk 0:00:35]} 33. b4 {[%clk 0:00:08]}  b6 {[%clk 0:00:29]} 34. a3 {[%clk 0:00:05]}  Kh4 {[%clk 0:00:27]} 35. Kg2 {[%clk 0:00:05]}  Kg5 {[%clk 0:00:26]} 36. Kf2 {[%clk 0:00:04]}  Kh5 {[%clk 0:00:25]} 37. Kg2 {[%clk 0:00:04]}  Kh4 {[%clk 0:00:26]} 38. a4 {[%clk 0:00:01]}  a5 {[%clk 0:00:15]} 39. bxa5 {[%clk 0:00:01]}  bxa5 {[%clk 0:00:14]} 40. Kh1 {[%clk 0:00:01]}  Kxh3 {[%clk 0:00:14]} 41. Kg1 {[%clk 0:00:02]}  Kh4 {[%clk 0:00:11]} 42. Kg2 {[%clk 0:00:02]}  Kg5 {[%clk 0:00:11]} 43. h3 {[%clk 0:00:01]}  Kf5 {[%clk 0:00:04]} 0-1


[Site "https://www.chess.com"]

[Event "Titled Tuesday Blitz June 21 Early 2022"]
[White "Di Nicolantonio, Lucas"]
[Black "Navara, David"]
[WhiteFideId "680460"]
[BlackFideId "309095"]
[WhiteElo "2381"]
[BlackElo "2686"]
[Result "0-1"]
[Round "01"]
[TimeControl "180+1"]
[Date "2022.06.21"]
[WhiteClock "0:00:11"]
[BlackClock "0:01:16"]

1. e4 {[%clk 0:02:59]}  c5 {[%clk 0:02:59]} 2. Nf3 {[%clk 0:02:56]}  d6 {[%clk 0:03:00]} 3. Bc4 {[%clk 0:02:54]}  Nf6 {[%clk 0:02:59]} 4. d3 {[%clk 0:02:54]}  Nc6 {[%clk 0:02:56]} 5. O-O {[%clk 0:02:54]}  g6 {[%clk 0:02:49]} 6. h3 {[%clk 0:02:52]}  Bg7 {[%clk 0:02:50]} 7. c3 {[%clk 0:02:51]}  O-O {[%clk 0:02:49]} 8. Re1 {[%clk 0:02:50]}  d5 {[%clk 0:02:48]} 9. exd5 {[%clk 0:02:46]}  Nxd5 {[%clk 0:02:49]} 10. a4 {[%clk 0:02:23]}  b6 {[%clk 0:02:41]} 11. Bg5 {[%clk 0:02:16]}  h6 {[%clk 0:02:40]} 12. Bh4 {[%clk 0:02:16]}  Bb7 {[%clk 0:02:31]} 13. Nbd2 {[%clk 0:02:09]}  Qd7 {[%clk 0:02:19]} 14. Bg3 {[%clk 0:01:52]}  Rfe8 {[%clk 0:02:09]} 15. Qc2 {[%clk 0:01:37]}  e5 {[%clk 0:02:07]} 16. Rad1 {[%clk 0:01:33]}  Kh7 {[%clk 0:01:58]} 17. Bb5 {[%clk 0:01:32]}  a6 {[%clk 0:01:50]} 18. Bxc6 {[%clk 0:01:24]}  Qxc6 {[%clk 0:01:51]} 19. Bxe5 {[%clk 0:01:18]}  Bxe5 {[%clk 0:01:50]} 20. Rxe5 {[%clk 0:01:09]}  Nb4 {[%clk 0:01:35]} 21. cxb4 {[%clk 0:00:25]}  Rxe5 {[%clk 0:01:36]} 22. b5 {[%clk 0:00:18]}  axb5 {[%clk 0:01:37]} 23. axb5 {[%clk 0:00:18]}  Qd5 {[%clk 0:01:37]} 24. Nc4 {[%clk 0:00:13]}  Re6 {[%clk 0:01:37]} 25. Qc3 {[%clk 0:00:13]}  Rae8 {[%clk 0:01:28]} 26. Ra1 {[%clk 0:00:12]}  Qf5 {[%clk 0:01:20]} 27. b4 {[%clk 0:00:11]}  Bxf3 {[%clk 0:01:16]} 0-1


[Site "https://www.chess.com"]

[Event "Titled Tuesday Blitz June 21 Early 2022"]
[White "Domingo Nunez, Ruben"]
[Black "Lauridsen, Jesper Morch"]
[WhiteFideId "22245570"]
[BlackFideId "1401890"]
[WhiteElo "2376"]
[BlackElo "2219"]
[Result "1-0"]
[Round "01"]
[TimeControl "180+1"]
[Date "2022.06.22"]
[WhiteClock "0:00:27"]
[BlackClock "0:00:06"]

1. Nf3 {[%clk 0:02:56]}  g6 {[%clk 0:02:59]} 2. g3 {[%clk 0:02:54]}  Bg7 {[%clk 0:02:58]} 3. c4 {[%clk 0:02:55]}  e5 {[%clk 0:02:57]} 4. Nc3 {[%clk 0:02:55]}  d6 {[%clk 0:02:56]} 5. Bg2 {[%clk 0:02:55]}  Nc6 {[%clk 0:02:56]} 6. Rb1 {[%clk 0:02:56]}  a5 {[%clk 0:02:55]} 7. a3 {[%clk 0:02:56]}  Nge7 {[%clk 0:02:52]} 8. d3 {[%clk 0:02:57]}  O-O {[%clk 0:02:51]} 9. b4 {[%clk 0:02:50]}  axb4 {[%clk 0:02:48]} 10. axb4 {[%clk 0:02:51]}  Nf5 {[%clk 0:02:43]} 11. Bg5 {[%clk 0:02:38]}  f6 {[%clk 0:02:41]} 12. Bd2 {[%clk 0:02:38]}  Ncd4 {[%clk 0:02:37]} 13. O-O {[%clk 0:02:28]}  Nxf3+ {[%clk 0:02:37]} 14. Bxf3 {[%clk 0:02:28]}  Nd4 {[%clk 0:02:36]} 15. Bd5+ {[%clk 0:02:28]}  Kh8 {[%clk 0:02:34]} 16. e3 {[%clk 0:02:28]}  Ne6 {[%clk 0:02:24]} 17. Qb3 {[%clk 0:02:27]}  Ng5 {[%clk 0:02:20]} 18. h4 {[%clk 0:02:24]}  Nf7 {[%clk 0:02:13]} 19. d4 {[%clk 0:02:07]}  Bh3 {[%clk 0:02:07]} 20. Rfe1 {[%clk 0:02:07]}  c6 {[%clk 0:02:05]} 21. Bg2 {[%clk 0:02:03]}  Bxg2 {[%clk 0:02:03]} 22. Kxg2 {[%clk 0:02:04]}  g5 {[%clk 0:01:57]} 23. h5 {[%clk 0:01:55]}  g4 {[%clk 0:01:56]} 24. b5 {[%clk 0:01:41]}  Ng5 {[%clk 0:01:49]} 25. Rh1 {[%clk 0:01:28]}  Nf3 {[%clk 0:01:45]} 26. Qd1 {[%clk 0:01:24]}  exd4 {[%clk 0:01:28]} 27. exd4 {[%clk 0:01:24]}  Nxd4 {[%clk 0:01:23]} 28. Qxg4 {[%clk 0:01:23]}  f5 {[%clk 0:01:23]} 29. Qd1 {[%clk 0:01:20]}  Qf6 {[%clk 0:01:02]} 30. h6 {[%clk 0:01:17]}  f4 {[%clk 0:00:55]} 31. hxg7+ {[%clk 0:01:16]}  Qxg7 {[%clk 0:00:54]} 32. Rh3 {[%clk 0:00:38]}  f3+ {[%clk 0:00:38]} 33. Kh2 {[%clk 0:00:34]}  Rae8 {[%clk 0:00:36]} 34. Bh6 {[%clk 0:00:34]}  Qg4 {[%clk 0:00:32]} 35. Rh4 {[%clk 0:00:27]}  Qxh4+ {[%clk 0:00:11]} 36. gxh4 {[%clk 0:00:27]}  Ne2 {[%clk 0:00:07]} 37. Nxe2 {[%clk 0:00:27]}  fxe2 {[%clk 0:00:06]} 38. Qd4+ {[%clk 0:00:27]}  Kg8 {[%clk 0:00:06]} 39. Qg7# {[%clk 0:00:27]} 1-0


[Site "https://www.chess.com"]

[Event "Titled Tuesday Blitz June 21 Early 2022"]
[White "Durarbayli, Vasif"]
[Black "Snehal, Bhosale"]
[WhiteFideId "13402935"]
[BlackFideId "5021995"]
[WhiteElo "2528"]
[BlackElo "2103"]
[Result "1-0"]
[Round "01"]
[TimeControl "180+1"]
[Date "2022.06.21"]
[WhiteClock "0:00:11"]
[BlackClock "0:00:02"]

1. e4 {[%clk 0:03:00]}  c5 {[%clk 0:02:59]} 2. Nf3 {[%clk 0:03:00]}  d6 {[%clk 0:02:59]} 3. Bb5+ {[%clk 0:03:01]}  Bd7 {[%clk 0:02:59]} 4. a4 {[%clk 0:03:01]}  Nf6 {[%clk 0:02:48]} 5. Qe2 {[%clk 0:03:00]}  g6 {[%clk 0:02:45]} 6. O-O {[%clk 0:02:59]}  Bg7 {[%clk 0:02:45]} 7. c3 {[%clk 0:02:59]}  O-O {[%clk 0:02:40]} 8. d4 {[%clk 0:03:00]}  cxd4 {[%clk 0:02:22]} 9. cxd4 {[%clk 0:03:00]}  Bc6 {[%clk 0:02:23]} 10. Nc3 {[%clk 0:02:53]}  Nbd7 {[%clk 0:02:19]} 11. Bd3 {[%clk 0:02:47]}  e6 {[%clk 0:02:01]} 12. b4 {[%clk 0:02:12]}  b6 {[%clk 0:01:54]} 13. Ba3 {[%clk 0:02:04]}  Bb7 {[%clk 0:01:50]} 14. Rac1 {[%clk 0:01:56]}  a6 {[%clk 0:01:20]} 15. b5 {[%clk 0:01:54]}  axb5 {[%clk 0:00:51]} 16. Nxb5 {[%clk 0:01:52]}  Rxa4 {[%clk 0:00:49]} 17. Bxd6 {[%clk 0:01:52]}  Qa8 {[%clk 0:00:38]} 18. Bxf8 {[%clk 0:01:33]}  Bxf8 {[%clk 0:00:39]} 19. Rc7 {[%clk 0:01:33]}  Ba6 {[%clk 0:00:17]} 20. e5 {[%clk 0:01:15]}  Nd5 {[%clk 0:00:17]} 21. Rxd7 {[%clk 0:01:01]}  Nf4 {[%clk 0:00:17]} 22. Qe3 {[%clk 0:00:58]}  Nxd3 {[%clk 0:00:17]} 23. Qxd3 {[%clk 0:00:59]}  Qc6 {[%clk 0:00:18]} 24. Rd8 {[%clk 0:00:19]}  Bxb5 {[%clk 0:00:17]} 25. Qe3 {[%clk 0:00:19]}  Kg7 {[%clk 0:00:11]} 26. Rc1 {[%clk 0:00:15]}  Bc4 {[%clk 0:00:09]} 27. h4 {[%clk 0:00:15]}  b5 {[%clk 0:00:09]} 28. h5 {[%clk 0:00:14]}  h6 {[%clk 0:00:08]} 29. hxg6 {[%clk 0:00:14]}  fxg6 {[%clk 0:00:08]} 30. Qf4 {[%clk 0:00:12]}  Be7 {[%clk 0:00:05]} 31. Rd6 {[%clk 0:00:12]}  Qa6 {[%clk 0:00:02]} 32. Rxa6 {[%clk 0:00:11]} 1-0


[Site "https://www.chess.com"]

[Event "Titled Tuesday Blitz June 21 Early 2022"]
[White "Einarsson, Halldor Gretar"]
[Black "Florescu, Codrut-Constantin"]
[WhiteFideId "2300150"]
[BlackFideId "1202200"]
[WhiteElo "2114"]
[BlackElo "2191"]
[Result "0-1"]
[Round "01"]
[TimeControl "180+1"]
[Date "2022.06.22"]
[WhiteClock "0:00:01"]
[BlackClock "0:01:17"]

1. d4 {[%clk 0:02:59]}  Nf6 {[%clk 0:02:58]} 2. c4 {[%clk 0:02:58]}  e6 {[%clk 0:02:58]} 3. g3 {[%clk 0:02:57]}  d5 {[%clk 0:02:57]} 4. Nf3 {[%clk 0:02:55]}  Be7 {[%clk 0:02:56]} 5. Bg2 {[%clk 0:02:55]}  O-O {[%clk 0:02:57]} 6. O-O {[%clk 0:02:54]}  c6 {[%clk 0:02:57]} 7. Qc2 {[%clk 0:02:44]}  Nbd7 {[%clk 0:02:57]} 8. Nbd2 {[%clk 0:02:39]}  b6 {[%clk 0:02:57]} 9. e4 {[%clk 0:02:35]}  Bb7 {[%clk 0:02:57]} 10. e5 {[%clk 0:02:26]}  Ne8 {[%clk 0:02:56]} 11. Rd1 {[%clk 0:02:13]}  Nc7 {[%clk 0:02:55]} 12. b3 {[%clk 0:02:07]}  c5 {[%clk 0:02:53]} 13. Ba3 {[%clk 0:01:45]}  Rc8 {[%clk 0:02:46]} 14. Nf1 {[%clk 0:01:19]}  b5 {[%clk 0:02:38]} 15. dxc5 {[%clk 0:00:58]}  bxc4 {[%clk 0:02:27]} 16. bxc4 {[%clk 0:00:56]}  Bxc5 {[%clk 0:02:21]} 17. Bxc5 {[%clk 0:00:50]}  Nxc5 {[%clk 0:02:22]} 18. Ne3 {[%clk 0:00:47]}  Qe7 {[%clk 0:02:18]} 19. Rab1 {[%clk 0:00:37]}  Ba8 {[%clk 0:02:07]} 20. h4 {[%clk 0:00:31]}  h6 {[%clk 0:02:06]} 21. Qc3 {[%clk 0:00:20]}  dxc4 {[%clk 0:01:54]} 22. Nxc4 {[%clk 0:00:17]}  Nd5 {[%clk 0:01:54]} 23. Qa3 {[%clk 0:00:16]}  Ne4 {[%clk 0:01:31]} 24. Qxe7 {[%clk 0:00:09]}  Nxe7 {[%clk 0:01:32]} 25. Nd6 {[%clk 0:00:09]}  Nc3 {[%clk 0:01:29]} 26. Nxc8 {[%clk 0:00:07]}  Nxc8 {[%clk 0:01:27]} 27. Rdc1 {[%clk 0:00:04]}  Nxb1 {[%clk 0:01:20]} 28. Rxb1 {[%clk 0:00:04]}  Nb6 {[%clk 0:01:21]} 29. Rc1 {[%clk 0:00:01]}  Bd5 {[%clk 0:01:17]} 0-1


[Site "https://www.chess.com"]

[Event "Titled Tuesday Blitz June 21 Early 2022"]
[White "Estrada Nieto, Julian"]
[Black "Sapunov, Evgeny"]
[WhiteFideId "5101018"]
[BlackFideId "4126661"]
[WhiteElo "2252"]
[BlackElo "2470"]
[Result "0-1"]
[Round "01"]
[TimeControl "180+1"]
[Date "2022.06.22"]
[WhiteClock "0:00:49"]
[BlackClock "0:00:49"]

1. e4 {[%clk 0:02:57]}  c5 {[%clk 0:02:59]} 2. Nf3 {[%clk 0:02:57]}  d6 {[%clk 0:02:59]} 3. d4 {[%clk 0:02:57]}  cxd4 {[%clk 0:02:59]} 4. Qxd4 {[%clk 0:02:57]}  a6 {[%clk 0:02:59]} 5. Bc4 {[%clk 0:02:56]}  e6 {[%clk 0:02:59]} 6. Nc3 {[%clk 0:02:55]}  Nf6 {[%clk 0:02:56]} 7. Qd3 {[%clk 0:02:48]}  Qc7 {[%clk 0:02:51]} 8. Bf4 {[%clk 0:02:45]}  Nbd7 {[%clk 0:02:44]} 9. O-O-O {[%clk 0:02:39]}  Ng4 {[%clk 0:02:39]} 10. Bg3 {[%clk 0:02:08]}  Be7 {[%clk 0:02:32]} 11. Bb3 {[%clk 0:02:04]}  Nge5 {[%clk 0:02:28]} 12. Qe2 {[%clk 0:02:00]}  b5 {[%clk 0:02:24]} 13. Nd4 {[%clk 0:01:58]}  Nc5 {[%clk 0:02:10]} 14. f4 {[%clk 0:01:55]}  Nc6 {[%clk 0:02:07]} 15. f5 {[%clk 0:01:44]}  b4 {[%clk 0:02:00]} 16. Na4 {[%clk 0:01:31]}  Nxb3+ {[%clk 0:01:51]} 17. axb3 {[%clk 0:01:29]}  Nxd4 {[%clk 0:01:32]} 18. Rxd4 {[%clk 0:01:29]}  Rb8 {[%clk 0:01:27]} 19. Rhd1 {[%clk 0:01:25]}  e5 {[%clk 0:01:24]} 20. Rc4 {[%clk 0:01:19]}  Qb7 {[%clk 0:01:17]} 21. Bf2 {[%clk 0:01:15]}  Bd7 {[%clk 0:01:09]} 22. Qg4 {[%clk 0:01:04]}  O-O {[%clk 0:01:02]} 23. f6 {[%clk 0:00:59]}  Bxg4 {[%clk 0:01:00]} 24. fxe7 {[%clk 0:00:59]}  Qxe7 {[%clk 0:00:59]} 25. Re1 {[%clk 0:00:57]}  Be6 {[%clk 0:00:52]} 26. Rc6 {[%clk 0:00:56]}  Rfc8 {[%clk 0:00:52]} 27. Rxa6 {[%clk 0:00:51]}  Bxb3 {[%clk 0:00:51]} 28. Nb6 {[%clk 0:00:49]}  Rxc2+ {[%clk 0:00:50]} 29. Kb1 {[%clk 0:00:49]}  Qc7 {[%clk 0:00:49]} 0-1


[Site "https://www.chess.com"]